fUST/lending_fUST_20250719
["ID","MTS","AMOUNT","RATE_DAILY","PERIOD"]
[373230126,1752918633437,-460.0,0.00016575,2]
[373230127,1752918633447,-460.0,0.00016575,2]
[373230128,1752918633457,-1998.54,0.00016575,2]
[373230129,1752918633467,-2482.87,0.00016575,2]
[373230130,1752918633477,-515.77,0.00016575,2]
[373230131,1752918633487,-460.0,0.00016575,2]
[373230132,1752918633497,-436.45833879,0.00016575,2]
[373230133,1752918633507,-1767.93,0.00016575,2]
[373230134,1752918633517,-460.0,0.00016575,2]
[373230135,1752918633527,-460.0,0.00016575,2]
[373230136,1752918633536,-460.0,0.00016575,2]
[373230137,1752918633546,-460.0,0.00016575,2]
[373230138,1752918633557,-538.16046026,0.00016575,2]
[373230139,1752918633567,-460.0,0.00016575,2]
[373230140,1752918633577,-460.0,0.00016575,2]
[373230141,1752918633587,-852.95,0.00016575,2]
[373230142,1752918633596,-460.0,0.00016575,2]
[373230143,1752918633606,-460.98555924,0.00016575,2]
[373230144,1752918633616,-903.38,0.00016575,2]
[373230145,1752918633627,-460.0,0.00016575,2]
[373230146,1752918633637,-334.67780035,0.00016575,2]
[373230147,1752918633647,-460.0,0.00016575,2]
[373230148,1752918633656,-460.0,0.00016575,2]
[373230149,1752918633666,-460.0,0.00016575,2]
[373230150,1752918633679,-460.0,0.00016575,2]
[373230151,1752918633689,-460.0,0.00016575,2]
[373230152,1752918633700,-460.0,0.00016575,2]
[373230153,1752918633709,-460.0,0.00016575,2]
[373230154,1752918633719,-460.0,0.00016575,2]
[373230155,1752918633728,-460.0,0.00016575,2]
[373230156,1752918633738,-460.0,0.00016575,2]
[373230157,1752918633748,-460.0,0.00016575,2]
[373230158,1752918633758,-460.0,0.00016575,2]
[373230159,1752918633768,-448.49853543,0.00016575,2]
[373230160,1752918633778,-523.94,0.00016575,2]
[373230161,1752918633787,-469.08121383,0.00016575,2]
[373230162,1752918633797,-460.0,0.00016575,2]
[373230163,1752918633807,-500.0,0.00016575,2]
[373230164,1752918633817,-500.0,0.00016576,2]
[373230165,1752918633827,-460.0,0.00016576,2]
[373230166,1752918633838,-591.19851294,0.00016576,2]
[373230167,1752918633847,-460.0,0.00016576,2]
[373230168,1752918633857,-460.0,0.00016576,2]
[373230169,1752918633867,-460.0,0.00016576,2]
[373230170,1752918633876,-460.0,0.00016576,2]
[373230171,1752918633886,-345.373978,0.00016576,2]
[373230172,1752918633897,-460.0,0.00016576,2]
[373230173,1752918633907,-462.53014485,0.00016576,2]
[373230174,1752918633917,-460.0,0.00016576,2]
[373230175,1752918633926,-460.0,0.00016576,2]
[373230176,1752918633937,-460.0,0.00016576,2]
[373230177,1752918633947,-460.0,0.00016576,2]
[373230178,1752918633957,-460.0,0.00016576,2]
[373230179,1752918633966,-460.0,0.00016576,2]
[373230180,1752918633977,-460.0,0.00016576,2]
[373230181,1752918633987,-460.0,0.00016576,2]
[373230182,1752918633996,-460.0,0.00016576,2]
[373230183,1752918634006,-460.0,0.00016576,2]
[373230184,1752918634016,-460.00000001,0.00016576,2]
[373230185,1752918634026,-460.0,0.00016576,2]
[373230186,1752918634036,-460.0,0.00016576,2]
[373230187,1752918634045,-429.23357507,0.00016576,2]
[373230194,1752918639187,-460.0,0.00016574,2]
[373230195,1752918639198,-500.0,0.00016574,2]
[373230196,1752918639208,-163.41191445,0.00016574,2]
[373230197,1752918639218,-500.0,0.00016575,2]
[373230198,1752918639229,-500.0,0.00016575,2]
[373230199,1752918639238,-430.5831489,0.00016575,2]
[373230201,1752918639250,-69.4168511,0.00016575,2]
[373230203,1752918639260,-30.76642493,0.00016576,2]
[373230204,1752918639270,-460.0,0.00016576,2]
[373230205,1752918639281,-460.0,0.00016576,2]
[373230206,1752918639291,-244.10303225,0.00016576,2]
[373230207,1752918639302,-215.89696775,0.00016576,2]
[373230208,1752918639312,-460.0,0.00016576,2]
[373230209,1752918639322,-460.0,0.00016576,2]
[373230210,1752918639331,-460.0,0.00016576,2]
[373230211,1752918639341,-460.0,0.00016576,2]
[373230212,1752918639351,-460.0,0.00016576,2]
[373230213,1752918639363,-12.95243225,0.00016576,2]
[373230214,1752918639374,-447.04756775,0.00016576,2]
[373230215,1752918639384,-413.18416625,0.00016576,2]
[373230216,1752918639396,-46.81583375,0.00016576,2]
[373230217,1752918639406,-460.0,0.00016576,2]
[373230218,1752918639418,-460.0,0.00016576,2]
[373230219,1752918639428,-460.0,0.00016576,2]
[373230220,1752918639438,-460.0,0.00016576,2]
[373230221,1752918639448,-460.0,0.00016576,2]
[373230222,1752918639457,-460.0,0.00016576,2]
[373230223,1752918639467,-460.0,0.00016576,2]
[373230224,1752918639477,-460.0,0.00016576,2]
[373230225,1752918639487,-460.0,0.00016576,2]
[373230226,1752918639497,-460.0,0.00016576,2]
[373230227,1752918639507,-460.0,0.00016576,2]
[373230228,1752918639519,-460.0,0.00016576,2]
[373230229,1752918639530,-460.0,0.00016576,2]
[373230230,1752918639539,-460.0,0.00016576,2]
[373230231,1752918639549,-460.0,0.00016576,2]
[373230232,1752918639558,-460.0,0.00016576,2]
[373230233,1752918639567,-460.0,0.00016576,2]
[373230234,1752918639577,-450.68514663,0.00016576,2]
[373230235,1752918639586,-460.0,0.00016576,2]
[373230236,1752918639596,-460.0,0.00016576,2]
[373230237,1752918639605,-460.0,0.00016576,2]
[373230238,1752918639615,-735.09,0.00016576,2]
[373230239,1752918639624,-1013.79,0.00016576,2]
[373230240,1752918639634,-460.0,0.00016576,2]
[373230241,1752918639643,-249.65864244,0.00016576,2]
[373230242,1752918639656,-210.34135756,0.00016576,2]
[373230243,1752918639666,-460.0,0.00016576,2]
[373230244,1752918639676,-907.75,0.00016576,2]
[373230245,1752918639686,-367.00235644,0.00016576,2]
[373230246,1752918639695,-460.0,0.00016576,2]
[373230247,1752918639705,-641.65373678,0.00016576,2]
[373230260,1752918640988,-197.95626322,0.00016576,2]
[373230261,1752918640998,-102.04373678,0.00016576,2]
[373230262,1752918641042,-357.95626322,0.00016576,2]
[373230263,1752918641052,-460.0,0.00016576,2]
[373230264,1752918641061,-262.04373678,0.00016576,2]
[373230272,1752918645678,-269.67626322,0.00016576,2]
[373230273,1752918645688,-460.0,0.00016576,2]
[373230274,1752918645698,-460.0,0.00016576,2]
[373230275,1752918645709,-466.2,0.00016576,2]
[373230276,1752918645719,-460.0,0.00016576,2]
[373230277,1752918645729,-460.0,0.00016576,2]
[373230278,1752918645739,-705.77,0.00016576,2]
[373230279,1752918645748,-369.58098645,0.00016576,2]
[373230280,1752918645758,-460.0,0.00016576,2]
[373230281,1752918645767,-460.0,0.00016576,2]
[373230282,1752918645777,-460.0,0.00016576,2]
[373230283,1752918645787,-460.0,0.00016576,2]
[373230284,1752918645796,-460.0,0.00016576,2]
[373230286,1752918645969,-460.0,0.00016576,2]
[373230288,1752918645979,-460.0,0.00016576,2]
[373230289,1752918645990,-460.0,0.00016576,2]
[373230290,1752918646000,-460.0,0.00016576,2]
[373230291,1752918646010,-500.0,0.00016576,2]
[373230292,1752918646020,-500.0,0.00016576,2]
[373230293,1752918646030,-500.0,0.00016576,2]
[373230294,1752918646040,-500.0,0.00016576,2]
[373230295,1752918646050,-2190.69,0.00016576,2]
[373230296,1752918646059,-460.0,0.00016576,2]
[373230297,1752918646068,-460.0,0.00016576,2]
[373230298,1752918646078,-460.0,0.00016576,2]
[373230299,1752918646091,-460.0,0.00016576,2]
[373230300,1752918646101,-479.79,0.00016576,2]
[373230301,1752918646111,-460.0,0.00016576,2]
[373230302,1752918646120,-460.0,0.00016576,2]
[373230303,1752918646130,-460.0,0.00016576,2]
[373230304,1752918646139,-460.0,0.00016576,2]
[373230305,1752918646152,-897.15,0.00016576,2]
[373230306,1752918646161,-460.0,0.00016576,2]
[373230307,1752918646171,-460.0,0.00016576,2]
[373230308,1752918646181,-460.0,0.00016576,2]
[373230309,1752918646191,-500.0,0.00016576,2]
[373230310,1752918646202,-304.23755328,0.00016576,2]
[373230311,1752918646211,-460.0,0.00016576,2]
[373230312,1752918646222,-460.0,0.00016576,2]
[373230313,1752918646231,-460.0,0.00016577,2]
[373230314,1752918646240,-526.97464806,0.00016577,2]
[373230315,1752918646250,-460.0,0.00016577,2]
[373230316,1752918646259,-460.0,0.00016577,2]
[373230317,1752918646268,-460.54991565,0.00016577,2]
[373230318,1752918646277,-460.0,0.00016577,2]
[373230319,1752918646286,-460.0,0.00016577,2]
[373230320,1752918646296,-460.0,0.00016577,2]
[373230321,1752918646305,-460.0,0.00016577,2]
[373230322,1752918646315,-460.0,0.00016577,2]
[373230323,1752918646325,-460.0,0.00016577,2]
[373230324,1752918646335,-498.97386836,0.00016577,2]
[373230325,1752918646346,-460.0,0.00016577,2]
[373230326,1752918646357,-460.0,0.00016577,2]
[373230327,1752918646366,-460.0,0.00016577,2]
[373230329,1752918646375,-460.0,0.00016577,2]
[373230331,1752918646385,-460.0,0.00016577,2]
[373230332,1752918646395,-460.0,0.00016577,2]
[373230333,1752918646405,-304.25057573,0.00016577,2]
[373230334,1752918646414,-460.0,0.00016577,2]
[373230335,1752918646423,-460.0,0.00016577,2]
[373230336,1752918646433,-460.0,0.00016577,2]
[373230337,1752918646443,-460.0,0.00016577,2]
[373230338,1752918646454,-464.0650274,0.00016577,2]
[373230339,1752918646463,-460.0,0.00016577,2]
[373230340,1752918646473,-460.0,0.00016577,2]
[373230342,1752918646483,-460.0,0.00016577,2]
[373230343,1752918646492,-460.0,0.00016577,2]
[373230344,1752918646502,-460.0,0.00016577,2]
[373230345,1752918646512,-492.21435257,0.00016577,2]
[373230346,1752918646521,-460.0,0.00016577,2]
[373230347,1752918646531,-460.0,0.00016577,2]
[373230348,1752918646540,-460.0,0.00016577,2]
[373230349,1752918646549,-460.0,0.00016577,2]
[373230350,1752918646559,-460.0,0.00016577,2]
[373230351,1752918646569,-460.0,0.00016577,2]
[373230352,1752918646578,-460.0,0.00016577,2]
[373230353,1752918646588,-460.0,0.00016577,2]
[373230354,1752918646597,-460.0,0.00016577,2]
[373230355,1752918646606,-460.0,0.00016577,2]
[373230356,1752918646616,-500.0,0.00016577,2]
[373230358,1752918646626,-460.0,0.00016578,2]
[373230359,1752918646636,-460.0,0.00016578,2]
[373230360,1752918646645,-460.0,0.00016848,2]
[373230361,1752918646654,-3991.43,0.00016848,2]
[373230362,1752918646664,-460.0,0.00016848,2]
[373230363,1752918646674,-460.0,0.00016848,2]
[373230364,1752918646683,-1335.82,0.00016848,2]
[373230365,1752918646693,-460.0,0.00016848,2]
[373230366,1752918646704,-3170.05,0.00016848,2]
[373230367,1752918646713,-163.66966262,0.00016848,2]
[373230368,1752918646723,-460.0,0.00016849,2]
[373230369,1752918646732,-460.0,0.00016849,2]
[373230370,1752918646741,-460.0,0.00016849,2]
[373230372,1752918646751,-439.57985123,0.00016849,2]
[373230373,1752918646760,-407.41580795,0.00016849,2]
[373230374,1752918646770,-460.0,0.00016849,2]
[373230375,1752918646780,-1998.54,0.00016849,2]
[373230376,1752918646790,-2482.87,0.00016849,2]
[373230377,1752918646799,-515.77,0.00016849,2]
[373230378,1752918646809,-460.0,0.00016849,2]
[373230379,1752918646818,-1767.93,0.00016849,2]
[373230380,1752918646830,-460.0,0.00016849,2]
[373230381,1752918646839,-460.0,0.00016849,2]
[373230382,1752918646849,-460.0,0.00016849,2]
[373230383,1752918646859,-852.95,0.00016849,2]
[373230384,1752918646869,-903.38,0.00016849,2]
[373230385,1752918646879,-460.0,0.00016849,2]
[373230386,1752918646889,-500.0,0.00016849,2]
[373230387,1752918646899,-460.0,0.00016849,2]
[373230388,1752918646909,-460.0,0.00016849,2]
[373230389,1752918646919,-460.0,0.00016849,2]
[373230390,1752918646929,-460.0,0.00016849,2]
[373230391,1752918646939,-460.0,0.00016849,2]
[373230392,1752918646948,-487.79274286,0.00016849,2]
[373230393,1752918646960,-523.94,0.00016849,2]
[373230394,1752918646970,-460.0,0.00016849,2]
[373230395,1752918646979,-460.0,0.0001685,2]
[373230396,1752918646989,-460.0,0.0001685,2]
[373230397,1752918646999,-592.2528239,0.0001685,2]
[373230398,1752918647010,-460.0,0.0001685,2]
[373230399,1752918647019,-460.0,0.0001685,2]
[373230400,1752918647028,-460.0,0.0001685,2]
[373230401,1752918647038,-460.0,0.0001685,2]
[373230402,1752918647048,-460.0,0.0001685,2]
[373230403,1752918647058,-460.0,0.0001685,2]
[373230404,1752918647067,-460.0,0.0001685,2]
[373230405,1752918647077,-460.0,0.0001685,2]
[373230406,1752918647087,-460.0,0.0001685,2]
[373230407,1752918647097,-460.0,0.0001685,2]
[373230408,1752918647106,-460.0,0.0001685,2]
[373230409,1752918647116,-460.0,0.0001685,2]
[373230410,1752918647126,-460.0,0.0001685,2]
[373230411,1752918647136,-460.0,0.0001685,2]
[373230412,1752918647147,-460.0,0.0001685,2]
[373230413,1752918647157,-460.0,0.0001685,2]
[373230414,1752918647166,-460.0,0.0001685,2]
[373230415,1752918647176,-541.31927437,0.0001685,2]
[373230416,1752918647186,-460.0,0.0001685,2]
[373230417,1752918647197,-460.0,0.0001685,2]
[373230418,1752918647208,-439.75262341,0.0001685,2]
[373230419,1752918647219,-460.0,0.0001685,2]
[373230420,1752918647230,-460.0,0.0001685,2]
[373230421,1752918647240,-460.0,0.0001685,2]
[373230422,1752918647249,-735.09,0.0001685,2]
[373230423,1752918647259,-1013.79,0.0001685,2]
[373230424,1752918647268,-460.0,0.0001685,2]
[373230425,1752918647277,-460.0,0.0001685,2]
[373230426,1752918647287,-460.0,0.0001685,2]
[373230427,1752918647296,-907.75,0.0001685,2]
[373230428,1752918647306,-460.0,0.0001685,2]
[373230429,1752918647315,-839.61,0.0001685,2]
[373230430,1752918647325,-460.0,0.0001685,2]
[373230431,1752918647334,-531.72,0.0001685,2]
[373230432,1752918647344,-460.0,0.0001685,2]
[373230433,1752918647353,-466.2,0.0001685,2]
[373230434,1752918647363,-705.77,0.0001685,2]
[373230435,1752918647373,-460.0,0.0001685,2]
[373230436,1752918647383,-460.0,0.0001685,2]
[373230437,1752918647392,-460.0,0.0001685,2]
[373230438,1752918647402,-460.0,0.0001685,2]
[373230439,1752918647412,-460.0,0.0001685,2]
[373230440,1752918647421,-500.0,0.0001685,2]
[373230441,1752918647431,-2190.69,0.0001685,2]
[373230442,1752918647440,-460.0,0.0001685,2]
[373230443,1752918647450,-460.0,0.0001685,2]
[373230444,1752918647461,-460.0,0.0001685,2]
[373230445,1752918647471,-460.0,0.0001685,2]
[373230446,1752918647481,-479.79,0.0001685,2]
[373230447,1752918647492,-460.0,0.0001685,2]
[373230448,1752918647502,-460.0,0.0001685,2]
[373230449,1752918647511,-460.0,0.0001685,2]
[373230450,1752918647520,-460.0,0.0001685,2]
[373230451,1752918647530,-897.15,0.0001685,2]
[373230452,1752918647539,-460.0,0.0001685,2]
[373230453,1752918647549,-460.0,0.0001685,2]
[373230454,1752918647559,-460.0,0.0001685,2]
[373230455,1752918647569,-460.0,0.0001685,2]
[373230456,1752918647578,-460.0,0.0001685,2]
[373230457,1752918647589,-341.83953974,0.00016851,2]
[373230458,1752918647599,-460.0,0.00016851,2]
[373230459,1752918647608,-299.00333731,0.00016851,2]
[373230460,1752918647618,-460.0,0.00016851,2]
[373230461,1752918647629,-460.0,0.00016851,2]
[373230462,1752918647638,-460.0,0.00016851,2]
[373230463,1752918647648,-460.0,0.00016851,2]
[373230464,1752918647658,-460.0,0.00016851,2]
[373230465,1752918647668,-460.0,0.00016851,2]
[373230466,1752918647677,-607.45,0.00016851,2]
[373230467,1752918647687,-460.0,0.00016851,2]
[373230468,1752918647697,-460.0,0.00016851,2]
[373230469,1752918647708,-460.0,0.00016851,2]
[373230470,1752918647718,-460.0,0.00016851,2]
[373230471,1752918647728,-460.0,0.00016851,2]
[373230472,1752918647738,-460.0,0.00016851,2]
[373230473,1752918647747,-460.0,0.00016851,2]
[373230474,1752918647757,-460.0,0.00016851,2]
[373230475,1752918647767,-460.0,0.00016851,2]
[373230476,1752918647777,-460.0,0.00016851,2]
[373230477,1752918647787,-460.0,0.00016851,2]
[373230478,1752918647796,-460.0,0.00016851,2]
[373230479,1752918647806,-211.88726933,0.00016851,2]
[373230480,1752918647816,-460.0,0.00016851,2]
[373230481,1752918647825,-460.0,0.00016851,2]
[373230482,1752918647835,-460.0,0.00016852,2]
[373230483,1752918647845,-181.07,0.00017122,2]
[373230484,1752918647855,-3991.43,0.00017122,2]
[373230485,1752918647864,-460.0,0.00017122,2]
[373230486,1752918647874,-460.0,0.00017122,2]
[373230487,1752918647884,-1335.82,0.00017122,2]
[373230488,1752918647894,-3170.05,0.00017122,2]
[373230489,1752918647904,-460.0,0.00017123,2]
[373230490,1752918647914,-460.0,0.00017123,2]
[373230491,1752918647924,-460.0,0.00017123,2]
[373230492,1752918647934,-1998.54,0.00017123,2]
[373230493,1752918647944,-2482.87,0.00017123,2]
[373230494,1752918647955,-515.77,0.00017123,2]
[373230495,1752918647964,-460.0,0.00017123,2]
[373230496,1752918647974,-1767.93,0.00017123,2]
[373230497,1752918647984,-460.0,0.00017123,2]
[373230498,1752918647994,-460.0,0.00017123,2]
[373230499,1752918648005,-460.0,0.00017123,2]
[373230500,1752918648016,-852.95,0.00017123,2]
[373230501,1752918648026,-903.38,0.00017123,2]
[373230502,1752918648036,-460.0,0.00017123,2]
[373230503,1752918648046,-500.0,0.00017123,2]
[373230504,1752918648056,-347.84,0.00017123,2]
[373230505,1752918648066,-460.0,0.00017123,2]
[373230506,1752918648076,-460.0,0.00017123,2]
[373230507,1752918648086,-460.0,0.00017123,2]
[373230508,1752918648096,-460.0,0.00017123,2]
[373230509,1752918648106,-523.94,0.00017123,2]
[373230510,1752918648116,-460.0,0.00017123,2]
[373230511,1752918648127,-460.0,0.00017124,2]
[373230512,1752918648138,-460.0,0.00017124,2]
[373230513,1752918648152,-460.0,0.00017124,2]
[373230514,1752918648162,-460.0,0.00017124,2]
[373230515,1752918648173,-460.0,0.00017124,2]
[373230516,1752918648183,-460.0,0.00017124,2]
[373230517,1752918648195,-460.0,0.00017124,2]
[373230518,1752918648205,-460.0,0.00017124,2]
[373230519,1752918648215,-460.0,0.00017124,2]
[373230520,1752918648226,-460.0,0.00017124,2]
[373230521,1752918648236,-460.0,0.00017124,2]
[373230522,1752918648247,-460.0,0.00017124,2]
[373230523,1752918648257,-460.0,0.00017124,2]
[373230524,1752918648266,-460.0,0.00017124,2]
[373230525,1752918648276,-460.0,0.00017124,2]
[373230526,1752918648287,-460.0,0.00017124,2]
[373230527,1752918648297,-460.0,0.00017124,2]
[373230528,1752918648307,-460.0,0.00017124,2]
[373230529,1752918648317,-460.0,0.00017124,2]
[373230530,1752918648326,-735.09,0.00017124,2]
[373230531,1752918648336,-1013.79,0.00017124,2]
[373230532,1752918648346,-460.0,0.00017124,2]
[373230533,1752918648356,-907.75,0.00017124,2]
[373230534,1752918648366,-460.0,0.00017124,2]
[373230535,1752918648375,-839.61,0.00017124,2]
[373230536,1752918648386,-460.0,0.00017124,2]
[373230537,1752918648395,-531.72,0.00017124,2]
[373230538,1752918648409,-460.0,0.00017124,2]
[373230539,1752918648419,-466.2,0.00017124,2]
[373230540,1752918648430,-705.77,0.00017124,2]
[373230541,1752918648440,-460.0,0.00017124,2]
[373230542,1752918648450,-460.0,0.00017124,2]
[373230543,1752918648461,-460.0,0.00017124,2]
[373230544,1752918648471,-2190.69,0.00017124,2]
[373230545,1752918648482,-460.0,0.00017124,2]
[373230546,1752918648492,-460.0,0.00017124,2]
[373230547,1752918648503,-183.568206,0.00017124,2]
[373230548,1752918648514,-479.79,0.00017124,2]
[373230549,1752918648525,-460.0,0.00017124,2]
[373230550,1752918648535,-460.0,0.00017124,2]
[373230551,1752918648544,-460.0,0.00017124,2]
[373230552,1752918648554,-460.0,0.00017124,2]
[373230553,1752918648564,-897.15,0.00017124,2]
[373230554,1752918648573,-460.0,0.00017124,2]
[373230555,1752918648583,-460.0,0.00017124,2]
[373230556,1752918648593,-460.0,0.00017124,2]
[373230557,1752918648603,-460.0,0.00017124,2]
[373230558,1752918648613,-460.0,0.00017124,2]
[373230559,1752918648623,-460.0,0.00017125,2]
[373230560,1752918648632,-460.0,0.00017125,2]
[373230561,1752918648642,-383.53953217,0.00017125,2]
[373230562,1752918648651,-460.0,0.00017125,2]
[373230563,1752918648661,-460.0,0.00017125,2]
[373230564,1752918648670,-460.0,0.00017125,2]
[373230565,1752918648680,-460.0,0.00017125,2]
[373230566,1752918648690,-460.0,0.00017125,2]
[373230567,1752918648700,-460.0,0.00017125,2]
[373230568,1752918648710,-460.0,0.00017125,2]
[373230569,1752918648720,-460.0,0.00017125,2]
[373230570,1752918648730,-460.0,0.00017125,2]
[373230571,1752918648740,-460.0,0.00017125,2]
[373230572,1752918648749,-286.76018713,0.00017125,2]
[373230573,1752918648759,-460.0,0.00017126,2]
[373230574,1752918648769,-9043.11911847,0.00017298,2]
[373230575,1752918648779,-500.0,0.00017313,2]
[373230576,1752918648789,-500.0,0.00017375,2]
[373230577,1752918648798,-500.0,0.00017375,2]
[373230578,1752918648809,-500.0,0.00017375,2]
[373230579,1752918648819,-500.0,0.00017375,2]
[373230580,1752918648828,-500.0,0.00017375,2]
[373230581,1752918648838,-500.0,0.00017375,2]
[373230582,1752918648848,-500.0,0.00017375,2]
[373230583,1752918648857,-500.0,0.00017375,2]
[373230584,1752918648869,-500.89162979,0.00017375,2]
[373230585,1752918648879,-500.44944029,0.00017387,2]
[373230586,1752918648889,-3991.43,0.00017396,2]
[373230587,1752918648899,-460.0,0.00017396,2]
[373230588,1752918648909,-460.0,0.00017396,2]
[373230589,1752918648919,-1335.82,0.00017396,2]
[373230590,1752918648928,-3170.05,0.00017396,2]
[373230591,1752918648938,-460.0,0.00017397,2]
[373230592,1752918648948,-1998.54,0.00017397,2]
[373230593,1752918648959,-2482.87,0.00017397,2]
[373230594,1752918648969,-515.77,0.00017397,2]
[373230595,1752918648978,-460.0,0.00017397,2]
[373230596,1752918648989,-1767.93,0.00017397,2]
[373230597,1752918648999,-460.0,0.00017397,2]
[373230598,1752918649009,-370.79196442,0.00017397,2]
[373230599,1752918649019,-460.0,0.00017397,2]
[373230600,1752918649030,-852.95,0.00017397,2]
[373230601,1752918649039,-903.38,0.00017397,2]
[373230602,1752918649049,-460.0,0.00017397,2]
[373230603,1752918649059,-460.0,0.00017397,2]
[373230604,1752918649069,-460.0,0.00017397,2]
[373230605,1752918649078,-460.0,0.00017397,2]
[373230606,1752918649088,-523.94,0.00017397,2]
[373230607,1752918649098,-460.0,0.00017397,2]
[373230608,1752918649108,-460.0,0.00017398,2]
[373230609,1752918649118,-460.0,0.00017398,2]
[373230610,1752918649129,-460.0,0.00017398,2]
[373230611,1752918649139,-460.0,0.00017398,2]
[373230612,1752918649154,-460.0,0.00017398,2]
[373230613,1752918649164,-154.38994801,0.00017398,2]
[373230614,1752918649175,-460.0,0.00017398,2]
[373230615,1752918649184,-460.0,0.00017398,2]
[373230616,1752918649194,-460.0,0.00017398,2]
[373230617,1752918649204,-460.0,0.00017398,2]
[373230618,1752918649214,-460.0,0.00017398,2]
[373230619,1752918649225,-460.0,0.00017398,2]
[373230620,1752918649235,-460.0,0.00017398,2]
[373230621,1752918649245,-460.0,0.00017398,2]
[373230622,1752918649385,-460.0,0.00017398,2]
[373230623,1752918649395,-460.0,0.00017398,2]
[373230624,1752918649405,-460.0,0.00017398,2]
[373230625,1752918649415,-460.0,0.00017398,2]
[373230626,1752918649424,-735.09,0.00017398,2]
[373230627,1752918649434,-1013.79,0.00017398,2]
[373230628,1752918649444,-460.0,0.00017398,2]
[373230629,1752918649454,-907.75,0.00017398,2]
[373230630,1752918649464,-460.0,0.00017398,2]
[373230631,1752918649474,-839.61,0.00017398,2]
[373230632,1752918649484,-460.0,0.00017398,2]
[373230633,1752918649494,-531.72,0.00017398,2]
[373230634,1752918649504,-466.2,0.00017398,2]
[373230635,1752918649514,-705.77,0.00017398,2]
[373230636,1752918649524,-460.0,0.00017398,2]
[373230637,1752918649534,-460.0,0.00017398,2]
[373230638,1752918649543,-460.0,0.00017398,2]
[373230639,1752918649552,-460.0,0.00017398,2]
[373230640,1752918649562,-2190.69,0.00017398,2]
[373230641,1752918649572,-460.0,0.00017398,2]
[373230642,1752918649584,-479.79,0.00017398,2]
[373230643,1752918649593,-460.0,0.00017398,2]
[373230644,1752918649603,-460.0,0.00017398,2]
[373230645,1752918649613,-460.0,0.00017398,2]
[373230646,1752918649623,-460.0,0.00017398,2]
[373230647,1752918649633,-897.15,0.00017398,2]
[373230648,1752918649642,-460.0,0.00017398,2]
[373230649,1752918649652,-568.99,0.00017398,2]
[373230650,1752918649662,-460.0,0.00017398,2]
[373230651,1752918649672,-460.0,0.00017399,2]
[373230652,1752918649682,-460.0,0.00017399,2]
[373230653,1752918649691,-460.0,0.00017399,2]
[373230654,1752918649701,-445.39185433,0.00017399,2]
[373230655,1752918649712,-460.0,0.00017399,2]
[373230656,1752918649723,-460.0,0.00017399,2]
[373230657,1752918649732,-460.0,0.00017399,2]
[373230658,1752918649742,-460.0,0.000174,2]
[373230659,1752918649752,-500.0,0.00017418,2]